[Event "Titled Tuesday Blitz April 26 Early 2022"]
[White "Samunenkov, Ihor"]
[Black "Chigaev, Maksim"]
[WhiteFideId "14187086"]
[BlackFideId "4108116"]
[WhiteElo "2409"]
[BlackElo "2478"]
[Result "1-0"]
[Round "09"]
[TimeControl "180+1"]
[Date "2022.04.26"]
[WhiteClock "0:00:02"]
[BlackClock "0:00:01"]

1. d4 {[%clk 0:03:00]}  Nf6 {[%clk 0:02:59]} 2. c4 {[%clk 0:03:00]}  g6 {[%clk 0:02:59]} 3. Nc3 {[%clk 0:02:59]}  Bg7 {[%clk 0:03:00]} 4. e4 {[%clk 0:02:59]}  d6 {[%clk 0:03:00]} 5. h3 {[%clk 0:02:59]}  O-O {[%clk 0:03:00]} 6. Bg5 {[%clk 0:03:00]}  c6 {[%clk 0:02:55]} 7. Nf3 {[%clk 0:02:58]}  Qa5 {[%clk 0:02:51]} 8. Qd2 {[%clk 0:02:47]}  e5 {[%clk 0:02:42]} 9. d5 {[%clk 0:02:35]}  Na6 {[%clk 0:02:39]} 10. Bd3 {[%clk 0:02:29]}  cxd5 {[%clk 0:02:30]} 11. cxd5 {[%clk 0:02:13]}  Nc5 {[%clk 0:02:26]} 12. Bc2 {[%clk 0:02:13]}  b5 {[%clk 0:02:15]} 13. Bxf6 {[%clk 0:01:29]}  Bxf6 {[%clk 0:02:13]} 14. O-O {[%clk 0:01:30]}  b4 {[%clk 0:02:08]} 15. Ne2 {[%clk 0:01:29]}  Rb8 {[%clk 0:01:54]} 16. Rfc1 {[%clk 0:01:22]}  Qd8 {[%clk 0:01:50]} 17. Ng3 {[%clk 0:01:20]}  Kg7 {[%clk 0:01:46]} 18. Bd1 {[%clk 0:01:14]}  a5 {[%clk 0:01:45]} 19. Be2 {[%clk 0:01:11]}  h5 {[%clk 0:01:41]} 20. Qe3 {[%clk 0:01:01]}  Bd7 {[%clk 0:01:34]} 21. Nf1 {[%clk 0:00:52]}  Qb6 {[%clk 0:01:29]} 22. N1d2 {[%clk 0:00:51]}  Na4 {[%clk 0:01:06]} 23. Qb3 {[%clk 0:00:50]}  Nc5 {[%clk 0:00:54]} 24. Qe3 {[%clk 0:00:49]}  Qd8 {[%clk 0:00:37]} 25. Nc4 {[%clk 0:00:47]}  Bb5 {[%clk 0:00:37]} 26. Ncxe5 {[%clk 0:00:31]}  Qe7 {[%clk 0:00:20]} 27. Bxb5 {[%clk 0:00:27]}  Bxe5 {[%clk 0:00:20]} 28. Nxe5 {[%clk 0:00:24]}  Qxe5 {[%clk 0:00:21]} 29. Qe2 {[%clk 0:00:11]}  Qxe4 {[%clk 0:00:16]} 30. Qxe4 {[%clk 0:00:12]}  Nxe4 {[%clk 0:00:17]} 31. Bc6 {[%clk 0:00:12]}  Nc5 {[%clk 0:00:14]} 32. Re1 {[%clk 0:00:12]}  Kf6 {[%clk 0:00:14]} 33. Re3 {[%clk 0:00:10]}  Rfc8 {[%clk 0:00:11]} 34. Rae1 {[%clk 0:00:10]}  Rc7 {[%clk 0:00:11]} 35. h4 {[%clk 0:00:08]}  Rf8 {[%clk 0:00:06]} 36. b3 {[%clk 0:00:07]}  Kg7 {[%clk 0:00:05]} 37. g3 {[%clk 0:00:07]}  Kf6 {[%clk 0:00:03]} 38. Kg2 {[%clk 0:00:06]}  Rd8 {[%clk 0:00:04]} 39. Re8 {[%clk 0:00:05]}  Rxe8 {[%clk 0:00:03]} 40. Rxe8 {[%clk 0:00:06]}  Re7 {[%clk 0:00:03]} 41. Ra8 {[%clk 0:00:07]}  Re2 {[%clk 0:00:04]} 42. Rxa5 {[%clk 0:00:05]}  Nd3 {[%clk 0:00:03]} 43. Kf3 {[%clk 0:00:05]}  Rb2 {[%clk 0:00:02]} 44. Ke3 {[%clk 0:00:04]}  Nxf2 {[%clk 0:00:02]} 45. Ra4 {[%clk 0:00:02]}  Ke5 {[%clk 0:00:03]} 46. Rxb4 {[%clk 0:00:02]}  Ng4+ {[%clk 0:00:03]} 47. Kd3 {[%clk 0:00:02]}  Rg2 {[%clk 0:00:04]} 48. Re4+ {[%clk 0:00:02]}  Kf5 {[%clk 0:00:04]} 49. Rf4+ {[%clk 0:00:02]}  Ke5 {[%clk 0:00:04]} 50. Rf3 {[%clk 0:00:03]}  f5 {[%clk 0:00:04]} 51. a4 {[%clk 0:00:03]}  Rb2 {[%clk 0:00:04]} 52. Kc3 {[%clk 0:00:03]}  Re2 {[%clk 0:00:04]} 53. a5 {[%clk 0:00:03]}  Ke4 {[%clk 0:00:04]} 54. Rf4+ {[%clk 0:00:03]}  Ke3 {[%clk 0:00:02]} 55. a6 {[%clk 0:00:04]}  Rg2 {[%clk 0:00:01]} 56. a7 {[%clk 0:00:04]}  Rxg3 {[%clk 0:00:02]} 57. Rc4 {[%clk 0:00:03]}  f4 {[%clk 0:00:02]} 58. a8=Q {[%clk 0:00:03]}  Ne5 {[%clk 0:00:02]} 59. Qe8 {[%clk 0:00:03]}  f3 {[%clk 0:00:01]} 60. Rd4 {[%clk 0:00:03]}  f2 {[%clk 0:00:01]} 61. Rd3+ {[%clk 0:00:02]} 1-0


[Site "https://www.chess.com"]

[Event "Titled Tuesday Blitz April 26 Early 2022"]
[White "Skliarov, Viktor"]
[Black "Sihite, Chelsie Monica Ignesias"]
[WhiteFideId "14106736"]
[BlackFideId "7101198"]
[WhiteElo "2229"]
[BlackElo "2224"]
[Result "0-1"]
[Round "09"]
[TimeControl "180+1"]
[Date "2022.04.26"]
[WhiteClock "0:00:07"]
[BlackClock "0:01:05"]

1. e4 {[%clk 0:02:57]}  e5 {[%clk 0:02:59]} 2. Nc3 {[%clk 0:02:52]}  Nf6 {[%clk 0:02:58]} 3. Bc4 {[%clk 0:02:53]}  c6 {[%clk 0:02:58]} 4. Nf3 {[%clk 0:02:52]}  d5 {[%clk 0:02:59]} 5. exd5 {[%clk 0:02:53]}  e4 {[%clk 0:02:58]} 6. Qe2 {[%clk 0:02:41]}  cxd5 {[%clk 0:02:58]} 7. Bb5+ {[%clk 0:02:41]}  Bd7 {[%clk 0:02:58]} 8. Bxd7+ {[%clk 0:02:39]}  Nbxd7 {[%clk 0:02:58]} 9. d3 {[%clk 0:02:39]}  Bb4 {[%clk 0:02:58]} 10. dxe4 {[%clk 0:02:34]}  Bxc3+ {[%clk 0:02:58]} 11. bxc3 {[%clk 0:02:33]}  dxe4 {[%clk 0:02:57]} 12. Ba3 {[%clk 0:02:02]}  Qa5 {[%clk 0:02:56]} 13. Bb4 {[%clk 0:02:01]}  Qa6 {[%clk 0:02:56]} 14. Qxa6 {[%clk 0:01:41]}  bxa6 {[%clk 0:02:57]} 15. Nd2 {[%clk 0:01:35]}  O-O-O {[%clk 0:02:51]} 16. Ke2 {[%clk 0:01:10]}  Rhe8 {[%clk 0:02:42]} 17. Nc4 {[%clk 0:01:07]}  Re6 {[%clk 0:02:36]} 18. Nd6+ {[%clk 0:01:01]}  Kb8 {[%clk 0:02:35]} 19. Nxf7 {[%clk 0:01:01]}  Rc8 {[%clk 0:02:35]} 20. Ng5 {[%clk 0:00:53]}  Ree8 {[%clk 0:02:33]} 21. Rhd1 {[%clk 0:00:51]}  Nb6 {[%clk 0:02:29]} 22. Rab1 {[%clk 0:00:44]}  Ka8 {[%clk 0:02:20]} 23. Nf7 {[%clk 0:00:44]}  Re6 {[%clk 0:02:15]} 24. Nd6 {[%clk 0:00:43]}  Rg8 {[%clk 0:02:14]} 25. c4 {[%clk 0:00:41]}  g5 {[%clk 0:01:59]} 26. c5 {[%clk 0:00:40]}  Nbd5 {[%clk 0:01:59]} 27. Ba5 {[%clk 0:00:33]}  h5 {[%clk 0:01:50]} 28. Rb3 {[%clk 0:00:32]}  Nf4+ {[%clk 0:01:49]} 29. Kf1 {[%clk 0:00:32]}  Nd7 {[%clk 0:01:48]} 30. c6 {[%clk 0:00:29]}  Nc5 {[%clk 0:01:48]} 31. Rc3 {[%clk 0:00:28]}  Na4 {[%clk 0:01:39]} 32. Rc4 {[%clk 0:00:28]}  Nb2 {[%clk 0:01:38]} 33. Rcd4 {[%clk 0:00:17]}  Nxd1 {[%clk 0:01:38]} 34. Rxd1 {[%clk 0:00:18]}  e3 {[%clk 0:01:31]} 35. fxe3 {[%clk 0:00:17]}  Rxe3 {[%clk 0:01:29]} 36. c7 {[%clk 0:00:18]}  Re5 {[%clk 0:01:29]} 37. Bb4 {[%clk 0:00:15]}  Nd5 {[%clk 0:01:28]} 38. c8=Q+ {[%clk 0:00:11]}  Rxc8 {[%clk 0:01:27]} 39. Nxc8 {[%clk 0:00:12]}  Ne3+ {[%clk 0:01:27]} 40. Ke2 {[%clk 0:00:12]}  Nxc2+ {[%clk 0:01:26]} 41. Kf2 {[%clk 0:00:08]}  Nxb4 {[%clk 0:01:26]} 42. Rd7 {[%clk 0:00:08]}  Kb8 {[%clk 0:01:23]} 43. Nd6 {[%clk 0:00:08]}  Rd5 {[%clk 0:01:23]} 44. Rb7+ {[%clk 0:00:08]}  Ka8 {[%clk 0:01:23]} 45. Rd7 {[%clk 0:00:09]}  Nc6 {[%clk 0:01:19]} 46. a4 {[%clk 0:00:07]}  a5 {[%clk 0:01:19]} 47. g3 {[%clk 0:00:07]}  a6 {[%clk 0:01:20]} 48. h4 {[%clk 0:00:07]}  g4 {[%clk 0:01:20]} 49. Ke2 {[%clk 0:00:07]}  Nd4+ {[%clk 0:01:18]} 50. Kf2 {[%clk 0:00:07]}  Nc6 {[%clk 0:01:14]} 51. Ke3 {[%clk 0:00:07]}  Nb8 {[%clk 0:01:11]} 52. Rd8 {[%clk 0:00:06]}  Rd1 {[%clk 0:01:07]} 53. Kf4 {[%clk 0:00:05]}  Rd5 {[%clk 0:01:06]} 54. Ke4 {[%clk 0:00:05]}  Rc5 {[%clk 0:01:07]} 55. Kd4 {[%clk 0:00:04]}  Rc7 {[%clk 0:01:02]} 56. Kd5 {[%clk 0:00:04]}  Ka7 {[%clk 0:01:03]} 57. Nc8+ {[%clk 0:00:04]}  Kb7 {[%clk 0:01:03]} 58. Nd6+ {[%clk 0:00:04]}  Ka7 {[%clk 0:01:03]} 59. Nc8+ {[%clk 0:00:04]}  Ka8 {[%clk 0:01:03]} 60. Nd6 {[%clk 0:00:03]}  Rd7 {[%clk 0:01:03]} 61. Rxd7 {[%clk 0:00:03]}  Nxd7 {[%clk 0:01:04]} 62. Ne4 {[%clk 0:00:03]}  Nb6+ {[%clk 0:01:04]} 63. Kc6 {[%clk 0:00:03]}  Nxa4 {[%clk 0:01:04]} 64. Nf6 {[%clk 0:00:03]}  Ka7 {[%clk 0:01:05]} 65. Nxh5 {[%clk 0:00:03]}  Nc3 {[%clk 0:01:06]} 66. Nf4 {[%clk 0:00:03]}  a4 {[%clk 0:01:06]} 67. Nd3 {[%clk 0:00:04]}  a3 {[%clk 0:01:06]} 68. Nb4 {[%clk 0:00:04]}  a5 {[%clk 0:01:07]} 69. Nc2 {[%clk 0:00:05]}  a2 {[%clk 0:01:07]} 70. h5 {[%clk 0:00:05]}  Ne2 {[%clk 0:01:06]} 71. h6 {[%clk 0:00:06]}  Nd4+ {[%clk 0:01:06]} 72. Nxd4 {[%clk 0:00:06]}  a1=Q {[%clk 0:01:07]} 73. Nb5+ {[%clk 0:00:06]}  Kb8 {[%clk 0:01:06]} 74. Nd6 {[%clk 0:00:07]}  Qh8 {[%clk 0:01:05]} 0-1


[Site "https://www.chess.com"]

[Event "Titled Tuesday Blitz April 26 Early 2022"]
[White "Starozhilov, Leonid"]
[Black "Sharapov, Evgeny"]
[WhiteFideId "14106752"]
[BlackFideId "14103133"]
[WhiteElo "2414"]
[BlackElo "2367"]
[Result "1/2-1/2"]
[Round "09"]
[TimeControl "180+1"]
[Date "2022.04.26"]
[WhiteClock "0:00:03"]
[BlackClock "0:00:32"]

1. c4 {[%clk 0:02:59]}  c5 {[%clk 0:02:59]} 2. Nf3 {[%clk 0:02:59]}  Nc6 {[%clk 0:02:59]} 3. g3 {[%clk 0:02:58]}  e5 {[%clk 0:02:59]} 4. Nc3 {[%clk 0:02:57]}  g6 {[%clk 0:02:59]} 5. Bg2 {[%clk 0:02:58]}  Bg7 {[%clk 0:02:59]} 6. O-O {[%clk 0:02:57]}  d6 {[%clk 0:03:00]} 7. Ne1 {[%clk 0:02:57]}  Be6 {[%clk 0:02:59]} 8. d3 {[%clk 0:02:48]}  Nge7 {[%clk 0:02:59]} 9. Nd5 {[%clk 0:02:45]}  O-O {[%clk 0:02:57]} 10. Nc2 {[%clk 0:02:45]}  Rb8 {[%clk 0:02:57]} 11. a4 {[%clk 0:02:44]}  a5 {[%clk 0:02:56]} 12. Na3 {[%clk 0:02:36]}  Nb4 {[%clk 0:02:54]} 13. e4 {[%clk 0:02:18]}  Nexd5 {[%clk 0:02:53]} 14. cxd5 {[%clk 0:02:16]}  Bd7 {[%clk 0:02:53]} 15. Nc4 {[%clk 0:02:12]}  Qc7 {[%clk 0:02:52]} 16. Bg5 {[%clk 0:01:41]}  f6 {[%clk 0:02:52]} 17. Be3 {[%clk 0:01:39]}  f5 {[%clk 0:02:49]} 18. f4 {[%clk 0:01:36]}  b5 {[%clk 0:02:35]} 19. axb5 {[%clk 0:01:31]}  Bxb5 {[%clk 0:02:34]} 20. fxe5 {[%clk 0:01:31]}  Bxc4 {[%clk 0:02:12]} 21. exd6 {[%clk 0:01:19]}  Qxd6 {[%clk 0:02:11]} 22. dxc4 {[%clk 0:01:20]}  fxe4 {[%clk 0:02:05]} 23. Rxf8+ {[%clk 0:01:09]}  Rxf8 {[%clk 0:02:03]} 24. Rxa5 {[%clk 0:01:08]}  Nd3 {[%clk 0:01:49]} 25. Qg4 {[%clk 0:00:39]}  Qb6 {[%clk 0:01:36]} 26. Qe6+ {[%clk 0:00:38]}  Qxe6 {[%clk 0:01:35]} 27. dxe6 {[%clk 0:00:39]}  Nxb2 {[%clk 0:01:16]} 28. Bxc5 {[%clk 0:00:39]}  Nxc4 {[%clk 0:01:10]} 29. Ra6 {[%clk 0:00:25]}  Rc8 {[%clk 0:00:58]} 30. Bb4 {[%clk 0:00:10]}  Bd4+ {[%clk 0:00:48]} 31. Kh1 {[%clk 0:00:08]}  Rb8 {[%clk 0:00:40]} 32. Bxe4 {[%clk 0:00:02]}  Rxb4 {[%clk 0:00:36]} 33. Ra8+ {[%clk 0:00:03]}  Kg7 {[%clk 0:00:36]} 34. e7 {[%clk 0:00:03]}  Nd6 {[%clk 0:00:32]} 35. e8=Q {[%clk 0:00:03]}  Nxe8 {[%clk 0:00:32]} 36. Rxe8 {[%clk 0:00:03]} 1/2-1/2


[Site "https://www.chess.com"]

[Event "Titled Tuesday Blitz April 26 Early 2022"]
[White "Urazayev, Arystanbek"]
[Black "Bluebaum, Matthias"]
[WhiteFideId "13709810"]
[BlackFideId "24651516"]
[WhiteElo "2422"]
[BlackElo "2550"]
[Result "1-0"]
[Round "09"]
[TimeControl "180+1"]
[Date "2022.04.26"]
[WhiteClock "0:01:02"]
[BlackClock "0:00:07"]

1. d4 {[%clk 0:03:00]}  Nf6 {[%clk 0:02:58]} 2. c4 {[%clk 0:03:01]}  e6 {[%clk 0:02:55]} 3. Nc3 {[%clk 0:03:01]}  Bb4 {[%clk 0:02:55]} 4. Nf3 {[%clk 0:03:01]}  d5 {[%clk 0:02:55]} 5. Qa4+ {[%clk 0:02:58]}  Nc6 {[%clk 0:02:54]} 6. a3 {[%clk 0:02:59]}  Bxc3+ {[%clk 0:02:53]} 7. bxc3 {[%clk 0:02:59]}  O-O {[%clk 0:02:51]} 8. Bg5 {[%clk 0:02:59]}  h6 {[%clk 0:02:48]} 9. Bh4 {[%clk 0:02:58]}  Bd7 {[%clk 0:02:38]} 10. Qc2 {[%clk 0:02:57]}  Na5 {[%clk 0:02:37]} 11. cxd5 {[%clk 0:02:51]}  exd5 {[%clk 0:02:38]} 12. e3 {[%clk 0:02:50]}  Rc8 {[%clk 0:02:29]} 13. Bd3 {[%clk 0:02:42]}  c5 {[%clk 0:02:27]} 14. O-O {[%clk 0:02:35]}  c4 {[%clk 0:02:15]} 15. Bf5 {[%clk 0:02:35]}  g5 {[%clk 0:02:10]} 16. Bxd7 {[%clk 0:02:03]}  Qxd7 {[%clk 0:02:07]} 17. Ne5 {[%clk 0:02:03]}  Qe6 {[%clk 0:02:03]} 18. Bg3 {[%clk 0:02:02]}  Nb3 {[%clk 0:02:03]} 19. Rae1 {[%clk 0:01:58]}  Ne4 {[%clk 0:01:37]} 20. f3 {[%clk 0:01:58]}  Nxg3 {[%clk 0:01:37]} 21. hxg3 {[%clk 0:01:58]}  f5 {[%clk 0:01:26]} 22. e4 {[%clk 0:01:42]}  dxe4 {[%clk 0:01:08]} 23. fxe4 {[%clk 0:01:43]}  f4 {[%clk 0:01:08]} 24. gxf4 {[%clk 0:01:34]}  Rxf4 {[%clk 0:01:07]} 25. Rxf4 {[%clk 0:01:32]}  gxf4 {[%clk 0:01:08]} 26. Rf1 {[%clk 0:01:31]}  Rf8 {[%clk 0:01:08]} 27. Qe2 {[%clk 0:01:29]}  b5 {[%clk 0:01:08]} 28. Qh5 {[%clk 0:01:24]}  Kg7 {[%clk 0:01:04]} 29. d5 {[%clk 0:01:19]}  Qb6+ {[%clk 0:00:25]} 30. Kh1 {[%clk 0:01:17]}  Qd6 {[%clk 0:00:18]} 31. Qg4+ {[%clk 0:01:11]}  Kh7 {[%clk 0:00:18]} 32. Rxf4 {[%clk 0:01:11]}  Rxf4 {[%clk 0:00:09]} 33. Qxf4 {[%clk 0:01:12]}  Qe7 {[%clk 0:00:06]} 34. Qf5+ {[%clk 0:01:11]}  Kg7 {[%clk 0:00:07]} 35. Qg6+ {[%clk 0:01:10]}  Kf8 {[%clk 0:00:08]} 36. Qxh6+ {[%clk 0:01:10]}  Kg8 {[%clk 0:00:08]} 37. Qg6+ {[%clk 0:01:07]}  Kf8 {[%clk 0:00:09]} 38. Qf5+ {[%clk 0:01:04]}  Kg7 {[%clk 0:00:08]} 39. Qg4+ {[%clk 0:01:02]}  Kh7 {[%clk 0:00:07]} 40. Qg6+ {[%clk 0:01:00]}  Kh8 {[%clk 0:00:07]} 41. Nf7+ {[%clk 0:01:01]}  Qxf7 {[%clk 0:00:07]} 42. Qxf7 {[%clk 0:01:02]} 1-0


[Site "https://www.chess.com"]

[Event "Titled Tuesday Blitz April 26 Early 2022"]
[White "Urbina Perez, Juan Antonio"]
[Black "Steil-Antoni, Fiona"]
[WhiteFideId "2217368"]
[BlackFideId "4001249"]
[WhiteElo "2192"]
[BlackElo "2059"]
[Result "1-0"]
[Round "09"]
[TimeControl "180+1"]
[Date "2022.04.26"]
[WhiteClock "0:00:10"]
[BlackClock "0:00:01"]

1. e4 {[%clk 0:02:51]}  e5 {[%clk 0:02:59]} 2. Nf3 {[%clk 0:02:50]}  Nc6 {[%clk 0:03:00]} 3. Bb5 {[%clk 0:02:48]}  a6 {[%clk 0:03:00]} 4. Ba4 {[%clk 0:02:48]}  d6 {[%clk 0:03:01]} 5. Bxc6+ {[%clk 0:02:43]}  bxc6 {[%clk 0:03:01]} 6. d4 {[%clk 0:02:43]}  f6 {[%clk 0:02:58]} 7. O-O {[%clk 0:02:39]}  Ne7 {[%clk 0:02:56]} 8. dxe5 {[%clk 0:02:35]}  fxe5 {[%clk 0:02:52]} 9. Bg5 {[%clk 0:02:34]}  Bg4 {[%clk 0:02:45]} 10. Nbd2 {[%clk 0:02:32]}  Qd7 {[%clk 0:02:45]} 11. c4 {[%clk 0:02:29]}  Ng6 {[%clk 0:02:44]} 12. Qa4 {[%clk 0:02:26]}  Be7 {[%clk 0:02:41]} 13. Bxe7 {[%clk 0:02:26]}  Nxe7 {[%clk 0:02:42]} 14. c5 {[%clk 0:02:25]}  O-O {[%clk 0:02:39]} 15. Rac1 {[%clk 0:02:20]}  Rf6 {[%clk 0:02:12]} 16. cxd6 {[%clk 0:02:07]}  cxd6 {[%clk 0:02:13]} 17. Rc3 {[%clk 0:02:06]}  Raf8 {[%clk 0:02:03]} 18. Qxa6 {[%clk 0:01:56]}  Kh8 {[%clk 0:01:58]} 19. Qc4 {[%clk 0:01:43]}  Qe8 {[%clk 0:01:41]} 20. Re1 {[%clk 0:01:40]}  Qg6 {[%clk 0:01:41]} 21. Kh1 {[%clk 0:01:40]}  Qh5 {[%clk 0:01:34]} 22. Ree3 {[%clk 0:01:35]}  d5 {[%clk 0:01:28]} 23. exd5 {[%clk 0:01:19]}  cxd5 {[%clk 0:01:28]} 24. Qc5 {[%clk 0:01:15]}  d4 {[%clk 0:00:52]} 25. Qxe7 {[%clk 0:01:14]}  dxe3 {[%clk 0:00:35]} 26. Rxe3 {[%clk 0:01:15]}  Qe8 {[%clk 0:00:21]} 27. Qxe5 {[%clk 0:00:57]}  Qc6 {[%clk 0:00:15]} 28. Qc3 {[%clk 0:00:55]}  Qb7 {[%clk 0:00:14]} 29. h3 {[%clk 0:00:52]}  Rc6 {[%clk 0:00:13]} 30. Qa3 {[%clk 0:00:47]}  Rc1+ {[%clk 0:00:13]} 31. Kh2 {[%clk 0:00:46]}  Qb8+ {[%clk 0:00:13]} 32. g3 {[%clk 0:00:44]}  Bxf3 {[%clk 0:00:13]} 33. Nxf3 {[%clk 0:00:41]}  Rd8 {[%clk 0:00:11]} 34. Qe7 {[%clk 0:00:38]}  h6 {[%clk 0:00:09]} 35. Kg2 {[%clk 0:00:38]}  Qa8 {[%clk 0:00:07]} 36. g4 {[%clk 0:00:34]}  Rf8 {[%clk 0:00:06]} 37. Qe4 {[%clk 0:00:33]}  Qxe4 {[%clk 0:00:06]} 38. Rxe4 {[%clk 0:00:34]}  Rc2 {[%clk 0:00:06]} 39. Rb4 {[%clk 0:00:34]}  Re8 {[%clk 0:00:05]} 40. Nd4 {[%clk 0:00:27]}  Rd2 {[%clk 0:00:05]} 41. a4 {[%clk 0:00:23]}  Rd8 {[%clk 0:00:06]} 42. Nf3 {[%clk 0:00:22]}  Rc2 {[%clk 0:00:06]} 43. a5 {[%clk 0:00:22]}  Ra8 {[%clk 0:00:06]} 44. Rb5 {[%clk 0:00:22]}  Re8 {[%clk 0:00:05]} 45. Nd4 {[%clk 0:00:19]}  Rd2 {[%clk 0:00:05]} 46. Rb4 {[%clk 0:00:19]}  Rd8 {[%clk 0:00:04]} 47. Nf3 {[%clk 0:00:19]}  Rc2 {[%clk 0:00:04]} 48. a6 {[%clk 0:00:19]}  Ra8 {[%clk 0:00:04]} 49. Ra4 {[%clk 0:00:19]}  Rxb2 {[%clk 0:00:04]} 50. Nd4 {[%clk 0:00:18]}  Rb6 {[%clk 0:00:04]} 51. a7 {[%clk 0:00:17]}  Rb7 {[%clk 0:00:04]} 52. Nc6 {[%clk 0:00:17]}  Kg8 {[%clk 0:00:04]} 53. Ra6 {[%clk 0:00:17]}  Kf7 {[%clk 0:00:05]} 54. Nd8+ {[%clk 0:00:16]}  Rxd8 {[%clk 0:00:02]} 55. a8=Q {[%clk 0:00:17]}  Rxa8 {[%clk 0:00:03]} 56. Rxa8 {[%clk 0:00:18]}  Re7 {[%clk 0:00:04]} 57. Ra6 {[%clk 0:00:18]}  g6 {[%clk 0:00:03]} 58. Kg3 {[%clk 0:00:18]}  Kg7 {[%clk 0:00:04]} 59. Kf4 {[%clk 0:00:17]}  Rf7+ {[%clk 0:00:05]} 60. Kg3 {[%clk 0:00:17]}  Re7 {[%clk 0:00:06]} 61. Ra4 {[%clk 0:00:16]}  Rd7 {[%clk 0:00:06]} 62. Re4 {[%clk 0:00:16]}  Rf7 {[%clk 0:00:07]} 63. h4 {[%clk 0:00:16]}  Ra7 {[%clk 0:00:07]} 64. Re6 {[%clk 0:00:15]}  Rb7 {[%clk 0:00:08]} 65. f3 {[%clk 0:00:15]}  Rb4 {[%clk 0:00:08]} 66. Rd6 {[%clk 0:00:15]}  Rb7 {[%clk 0:00:08]} 67. g5 {[%clk 0:00:15]}  h5 {[%clk 0:00:08]} 68. Rc6 {[%clk 0:00:14]}  Ra7 {[%clk 0:00:08]} 69. Kf4 {[%clk 0:00:13]}  Ra4+ {[%clk 0:00:08]} 70. Ke5 {[%clk 0:00:13]}  Ra5+ {[%clk 0:00:08]} 71. Ke6 {[%clk 0:00:14]}  Ra7 {[%clk 0:00:07]} 72. Rd6 {[%clk 0:00:14]}  Ra3 {[%clk 0:00:04]} 73. Rd7+ {[%clk 0:00:14]}  Kg8 {[%clk 0:00:03]} 74. Kf6 {[%clk 0:00:15]}  Rxf3+ {[%clk 0:00:03]} 75. Kxg6 {[%clk 0:00:15]}  Kf8 {[%clk 0:00:04]} 76. Kxh5 {[%clk 0:00:15]}  Rf1 {[%clk 0:00:04]} 77. Rd6 {[%clk 0:00:13]}  Ra1 {[%clk 0:00:03]} 78. Rf6+ {[%clk 0:00:12]}  Kg7 {[%clk 0:00:03]} 79. Rg6+ {[%clk 0:00:13]}  Kh7 {[%clk 0:00:03]} 80. Rb6 {[%clk 0:00:13]}  Ra5 {[%clk 0:00:03]} 81. Rb7+ {[%clk 0:00:12]}  Kg8 {[%clk 0:00:03]} 82. Kh6 {[%clk 0:00:12]}  Kf8 {[%clk 0:00:03]} 83. g6 {[%clk 0:00:11]}  Ra6 {[%clk 0:00:02]} 84. h5 {[%clk 0:00:11]}  Rc6 {[%clk 0:00:01]} 85. Kh7 {[%clk 0:00:10]}  Ra6 {[%clk 0:00:01]} 86. g7+ {[%clk 0:00:10]} 1-0


[Site "https://www.chess.com"]

[Event "Titled Tuesday Blitz April 26 Early 2022"]
[White "Wartiovaara, Oliver"]
[Black "Saim, Mohamed Ilias"]
[WhiteFideId "513024"]
[BlackFideId "7900465"]
[WhiteElo "1971"]
[BlackElo "2006"]
[Result "1-0"]
[Round "09"]
[TimeControl "180+1"]
[Date "2022.04.26"]
[WhiteClock "0:01:14"]
[BlackClock "0:00:01"]

1. e4 {[%clk 0:03:00]}  c6 {[%clk 0:02:59]} 2. d4 {[%clk 0:02:59]}  d5 {[%clk 0:03:00]} 3. e5 {[%clk 0:02:53]}  Bf5 {[%clk 0:03:00]} 4. Nd2 {[%clk 0:02:51]}  e6 {[%clk 0:02:58]} 5. Nb3 {[%clk 0:02:51]}  a5 {[%clk 0:02:51]} 6. a4 {[%clk 0:02:50]}  Nd7 {[%clk 0:02:47]} 7. Nf3 {[%clk 0:02:49]}  c5 {[%clk 0:02:44]} 8. dxc5 {[%clk 0:02:47]}  Ne7 {[%clk 0:02:25]} 9. Bb5 {[%clk 0:02:43]}  Nc6 {[%clk 0:02:23]} 10. Bxc6 {[%clk 0:02:41]}  bxc6 {[%clk 0:02:22]} 11. Be3 {[%clk 0:02:38]}  Qc7 {[%clk 0:02:19]} 12. Bd4 {[%clk 0:02:37]}  Be7 {[%clk 0:02:12]} 13. Qd2 {[%clk 0:02:31]}  Qa7 {[%clk 0:01:59]} 14. Qe3 {[%clk 0:02:30]}  Bxc2 {[%clk 0:01:56]} 15. Nbd2 {[%clk 0:02:25]}  Bxc5 {[%clk 0:01:43]} 16. Rc1 {[%clk 0:02:17]}  Bxd4 {[%clk 0:01:38]} 17. Nxd4 {[%clk 0:02:18]}  Bxa4 {[%clk 0:01:32]} 18. b3 {[%clk 0:02:10]}  Bb5 {[%clk 0:01:25]} 19. Nxb5 {[%clk 0:02:02]}  cxb5 {[%clk 0:01:26]} 20. Qxa7 {[%clk 0:01:55]}  Rxa7 {[%clk 0:01:12]} 21. Rc8+ {[%clk 0:01:54]}  Ke7 {[%clk 0:01:03]} 22. Rxh8 {[%clk 0:01:55]}  a4 {[%clk 0:00:50]} 23. bxa4 {[%clk 0:01:53]}  bxa4 {[%clk 0:00:51]} 24. O-O {[%clk 0:01:52]}  Nf8 {[%clk 0:00:49]} 25. Ra1 {[%clk 0:01:48]}  f6 {[%clk 0:00:45]} 26. f4 {[%clk 0:01:45]}  Kf7 {[%clk 0:00:41]} 27. Nb1 {[%clk 0:01:35]}  fxe5 {[%clk 0:00:32]} 28. fxe5 {[%clk 0:01:36]}  g6 {[%clk 0:00:32]} 29. Nc3 {[%clk 0:01:35]}  Kg7 {[%clk 0:00:26]} 30. Rxf8 {[%clk 0:01:28]}  Kxf8 {[%clk 0:00:27]} 31. Rxa4 {[%clk 0:01:28]}  Rc7 {[%clk 0:00:19]} 32. Nb5 {[%clk 0:01:27]}  Rc2 {[%clk 0:00:16]} 33. Nd4 {[%clk 0:01:25]}  Rc1+ {[%clk 0:00:15]} 34. Kf2 {[%clk 0:01:25]}  Rb1 {[%clk 0:00:08]} 35. Nxe6+ {[%clk 0:01:24]}  Kf7 {[%clk 0:00:07]} 36. Nd4 {[%clk 0:01:22]}  Kg7 {[%clk 0:00:06]} 37. Ra7+ {[%clk 0:01:20]}  Kh6 {[%clk 0:00:05]} 38. e6 {[%clk 0:01:20]}  Rb2+ {[%clk 0:00:04]} 39. Kf3 {[%clk 0:01:18]}  Rb4 {[%clk 0:00:02]} 40. e7 {[%clk 0:01:18]}  Rb8 {[%clk 0:00:02]} 41. Nc6 {[%clk 0:01:14]}  Ra8 {[%clk 0:00:01]} 42. Rxa8 {[%clk 0:01:14]} 1-0


[Site "https://www.chess.com"]